bitfinex-derivatives/quotes_SOLF0:USTF0_20260123
["timestamp","ask_amount","ask_price","bid_price","bid_amount"]
[1769179465805,5.30999181,125.78,125.63,116.88629181]
[1769179467009,7.1661,125.75,125.66,7.1711]
[1769179467203,7.1661,125.75,125.69,0.05649276]
[1769179468800,7.1666,125.74,125.69,0.05649276]
[1769179469205,7.1666,125.74,125.65,7.1716]
[1769179469705,7.1666,125.74,125.68,0.05334706]
[1769179470402,7.1658,125.76,125.68,0.05334706]
[1769179470794,7.1658,125.76,125.68,7.22314706]
[1769179470999,2.16299832,125.74,125.68,7.1698]
[1769179471403,2.16299832,125.74,125.65,2.16299832]
[1769179471607,2.21804412,125.72,125.65,2.16299832]
[1769179472203,0.0550458,125.72,125.65,2.16299832]
[1769179472705,0.0550458,125.72,125.66,7.1705]
[1769179473707,0.0550458,125.72,125.67,7.1704]
[1769179474309,2.16299832,125.73,125.67,7.1704]
[1769179474509,0.06055022,125.71,125.67,7.1704]
[1769179475210,0.06055022,125.71,125.68,7.1698]
[1769179476606,2.16299832,125.74,125.68,7.1698]
[1769179476911,111.4084,125.83,125.68,0.05544075]
[1769179477111,2.16299832,125.75,125.68,0.05544075]
[1769179477612,2.16299832,125.75,125.68,2.16299832]
[1769179477904,7.164,125.79,125.71,7.1682]
[1769179478108,2.16299832,125.76,125.71,7.1682]
[1769179479011,2.16299832,125.78,125.72,7.22711583]
[1769179479207,111.3976,125.84,125.72,0.05951583]
[1769179479405,2.16299832,125.8,125.72,0.05951583]
[1769179479907,2.16299832,125.76,125.69,113.68299832]
[1769179480112,2.16299832,125.76,125.69,2.16299832]
[1769179480318,2.16299832,125.77,125.69,2.16299832]
[1769179480506,0.05733846,125.74,125.69,2.16299832]
[1769179481015,2.16299832,125.77,125.71,7.1682]
[1769179481206,2.16299832,125.75,125.68,111.5302]
[1769179482412,2.16299832,125.75,125.7,0.05141174]
[1769179482915,2.16299832,125.75,125.7,7.22011174]
[1769179483212,2.16299832,125.75,125.7,0.05141174]
[1769179485619,9.32909832,125.75,125.7,0.05141174]
[1769179487311,2.16299832,125.75,125.7,0.05141174]
[1769179487508,7.1653,125.77,125.7,0.05141174]
[1769179487711,2.16299832,125.76,125.7,0.05141174]
[1769179488214,7.1643,125.78,125.7,0.05141174]
[1769179488418,2.16299832,125.77,125.7,0.05141174]
[1769179488720,2.16299832,125.77,125.69,2.16299832]
[1769179489120,2.16299832,125.77,125.72,0.05816365]
[1769179489322,7.1635,125.8,125.72,0.05816365]
[1769179489524,9.32649832,125.8,125.72,0.05816365]
[1769179489916,2.16299832,125.8,125.71,2.16299832]
[1769179490224,2.16299832,125.8,125.75,0.06017234]
[1769179490413,2.16299832,125.76,125.68,2.16299832]
[1769179490611,2.16299832,125.74,125.66,2.16299832]
[1769179491717,0.05258908,125.71,125.66,2.16299832]
[1769179493325,2.16299832,125.74,125.66,9.33389832]
[1769179493727,2.16299832,125.74,125.67,0.05427106]
[1769179494523,2.16299832,125.78,125.7,2.16299832]
[1769179494724,2.16299832,125.74,125.67,0.05427106]
[1769179494920,5.31121387,125.77,125.67,0.05427106]
[1769179495120,5.84937194,125.76,125.62,111.578]
[1769179495521,7.166,125.75,125.66,7.1711]
[1769179496128,7.166,125.75,125.69,0.0510319]
[1769179496926,12.47651387,125.77,125.69,0.0510319]
[1769179497125,7.1653,125.77,125.69,0.0510319]
[1769179497327,7.1653,125.77,125.69,7.2202319]
[1769179497527,7.1642,125.78,125.67,111.5397]
[1769179497732,7.1642,125.78,125.72,0.0515341]
[1769179499132,7.1635,125.8,125.72,0.0515341]
[1769179499830,7.1635,125.8,125.7,111.5128]
[1769179500030,7.1635,125.8,125.73,7.167]
[1769179500228,23.9,125.88,125.75,111.4684]
[1769179500528,11.94843382,125.87,125.77,111.451]
[1769179500727,7.157,125.91,125.8,111.4245]
[1769179500931,11.95254042,125.9,125.8,111.4225]
[1769179501231,7.1593,125.87,125.77,116.76221387]
[1769179501421,7.1593,125.87,125.75,111.4645]
[1769179501626,12.47051387,125.87,125.76,111.4612]
[1769179501838,116.68121387,125.87,125.76,7.1652]
[1769179502030,0.0566369,125.82,125.7,111.5073]
[1769179502226,0.0566369,125.82,125.71,111.5042]
[1769179502428,0.0566369,125.82,125.7,111.5073]
[1769179502736,111.4095,125.82,125.7,111.5073]
[1769179503228,0.05897256,125.77,125.7,111.5073]
[1769179503538,5.31121387,125.84,125.75,0.05286209]
[1769179504135,5.31121387,125.84,125.73,111.486]
[1769179504835,111.4008,125.83,125.77,0.05678297]
[1769179505033,111.4008,125.83,125.71,111.5065]
[1769179505426,116.70591387,125.84,125.71,111.5065]
[1769179505624,116.70591387,125.84,125.72,111.4975]
[1769179506029,7.1621,125.82,125.74,7.1664]
[1769179506232,111.4019,125.83,125.71,111.5065]
[1769179506430,0.05705425,125.79,125.68,111.5265]
[1769179506829,7.1644,125.78,125.7,7.1684]
[1769179507031,111.4386,125.79,125.67,111.5397]
[1769179507239,0.05986491,125.75,125.68,7.1695]
[1769179507828,111.4299,125.8,125.7,111.5124]
[1769179507829,7.1633,125.8,125.7,111.5124]
[1769179508027,111.412,125.82,125.7,0.05386609]
[1769179508234,7.1638,125.79,125.7,7.22236609]
[1769179508541,7.1638,125.79,125.7,7.1685]
[1769179509240,7.1638,125.79,125.73,0.05395983]
[1769179509843,7.1646,125.78,125.73,0.05395983]
[1769179510342,7.1646,125.78,125.67,111.5397]
[1769179510642,7.1635,125.8,125.68,111.5306]
[1769179510842,7.1635,125.8,125.74,0.05059345]
[1769179511742,7.1624,125.82,125.74,0.05059345]
[1769179511937,116.70581387,125.84,125.74,0.05059345]
[1769179512336,116.70581387,125.84,125.71,111.5027]
[1769179512734,302.18312037,125.92,125.71,111.5027]
[1769179512735,116.68351387,125.87,125.78,0.05802513]
[1769179513443,7.1609,125.84,125.73,111.4862]
[1769179513742,111.3834,125.85,125.71,111.5027]
[1769179514140,111.4035,125.83,125.7,5.31121387]
[1769179515242,0.05138009,125.78,125.67,5.31121387]
[1769179515740,111.4035,125.83,125.69,111.5226]
[1769179516240,7.1632,125.8,125.7,3.27487487]
[1769179516550,7.1632,125.8,125.75,0.05673049]
[1769179517051,7.1632,125.8,125.69,3.27487487]
[1769179517052,0.96074088,125.79,125.69,3.27487487]
[1769179517936,0.96074088,125.79,125.7,10.44357487]
[1769179518239,0.90401039,125.77,125.67,3.27487487]
[1769179518543,0.90401039,125.75,125.67,3.27487487]
[1769179518943,0.90401039,125.75,125.64,3.27487487]
[1769179519143,0.05613778,125.72,125.65,7.1716]
[1769179519535,0.05613778,125.72,125.65,10.44647487]
[1769179519738,0.05613778,125.72,125.65,3.27487487]
[1769179519940,0.96014817,125.72,125.62,3.27487487]
[1769179520238,0.90401039,125.72,125.62,3.27487487]
[1769179520646,0.05008772,125.68,125.62,3.27487487]
[1769179520841,0.05008772,125.68,125.62,10.44807487]
[1769179521543,0.05008772,125.68,125.62,3.27487487]
[1769179521738,0.05008772,125.68,125.6,7.1743]
[1769179522041,0.05008772,125.68,125.6,10.44917487]
[1769179522240,0.90401039,125.7,125.6,10.44917487]
[1769179522637,0.05732245,125.65,125.61,10.44857487]
[1769179522842,0.90401039,125.7,125.61,3.27487487]
[1769179523038,7.1702,125.68,125.64,0.05689838]
[1769179523246,0.90401039,125.68,125.58,10.45047487]
[1769179524141,0.90401039,125.68,125.6,3.27487487]
[1769179524342,0.90401039,125.68,125.57,3.27487487]
[1769179524541,0.84711201,125.67,125.57,3.27487487]
[1769179524752,0.05147992,125.64,125.57,3.27487487]
[1769179524940,0.05147992,125.64,125.57,10.45077487]
[1769179525846,0.05147992,125.64,125.58,10.45037487]
[1769179526051,0.84711201,125.67,125.58,10.45037487]
[1769179526052,0.84711201,125.7,125.59,3.27487487]
[1769179526348,0.89859193,125.69,125.59,3.27487487]
[1769179526652,7.1701,125.68,125.6,10.44937487]
[1769179527549,7.1701,125.68,125.63,0.05028564]
[1769179528145,0.89854575,125.66,125.57,3.4455783]
[1769179528953,7.1718,125.65,125.57,10.6215783]
[1769179529247,0.89854575,125.66,125.57,10.6215783]
[1769179529450,8.01896011,125.67,125.58,3.4455783]
[1769179529651,0.84826011,125.66,125.55,3.4455783]
[1769179530245,0.84826011,125.65,125.55,3.4455783]
[1769179530450,0.05258529,125.62,125.55,3.4455783]
[1769179532148,0.05258529,125.62,125.56,3.25017382]
[1769179532340,0.84826011,125.66,125.56,3.25017382]
[1769179532542,0.84826011,125.66,125.57,3.30133628]
[1769179532850,8.01956011,125.66,125.58,10.42567382]
[1769179533551,7.1704,125.68,125.59,3.25017382]
[1769179533752,0.8514188,125.69,125.59,3.25017382]
[1769179533951,7.1701,125.68,125.59,10.42477382]
[1769179534149,7.1701,125.68,125.62,0.05160513]
[1769179535552,7.1706,125.67,125.62,0.05160513]
[1769179535749,0.8514188,125.67,125.62,0.05160513]
[1769179536057,7.1703,125.68,125.59,3.25017382]
[1769179536558,7.1703,125.68,125.61,7.1738]
[1769179536957,7.1703,125.68,125.61,10.42397382]
[1769179537153,0.05189516,125.66,125.63,3.25017382]
[1769179537357,0.90331396,125.72,125.63,3.25017382]
[1769179537558,0.90331396,125.72,125.63,3.30137606]
[1769179538161,0.90331396,125.72,125.64,3.25017382]
[1769179538162,7.1683,125.71,125.64,3.25017382]
[1769179538361,0.90331396,125.72,125.64,3.25017382]
[1769179538560,0.90331396,125.7,125.61,3.25017382]
[1769179538953,0.90331396,125.7,125.61,10.42397382]
[1769179539157,112.42151396,125.7,125.61,3.25017382]
[1769179539465,0.90331396,125.68,125.58,3.25017382]
[1769179540256,0.90331396,125.66,125.58,3.25017382]
[1769179540849,111.5447,125.67,125.58,3.25017382]
[1769179540850,117.73564364,125.69,125.58,3.25017382]
[1769179541055,112.48809957,125.68,125.58,3.25017382]
[1769179541255,7.1712,125.66,125.59,7.175]
[1769179541451,0.95469957,125.68,125.59,3.25017382]
[1769179541758,0.95469957,125.7,125.59,3.25017382]
[1769179541959,7.17,125.68,125.6,3.25017382]
[1769179542467,7.17,125.68,125.63,0.0549419]
[1769179543864,7.1706,125.67,125.63,0.0549419]
[1769179544767,7.1713,125.66,125.57,114.87757382]
[1769179544969,7.1713,125.66,125.57,3.25017382]
[1769179545263,7.22396511,125.66,125.57,3.25017382]
[1769179545463,7.1713,125.66,125.57,3.25017382]
[1769179546052,7.1713,125.66,125.59,7.1748]
[1769179546266,0.05520953,125.63,125.59,7.1748]
[1769179547265,0.05520953,125.63,125.57,10.42587382]
[1769179547467,0.05520953,125.63,125.57,3.25017382]
[1769179548166,0.05520953,125.63,125.59,10.42517382]
[1769179548863,0.05520953,125.63,125.57,10.42587382]
[1769179549064,1.0099091,125.63,125.54,3.25017382]
[1769179549469,0.95469957,125.63,125.54,3.25017382]
[1769179549771,0.05477996,125.6,125.54,3.25017382]
[1769179550873,0.05477996,125.6,125.54,10.42807382]
[1769179551764,0.95469957,125.65,125.56,0.0566511]
[1769179551970,0.95469957,125.64,125.56,0.0566511]
[1769179552166,0.95469957,125.64,125.55,3.25017382]
[1769179552362,0.95469957,125.64,125.56,7.1768]
[1769179552564,0.95469957,125.64,125.56,10.42697382]
[1769179552967,0.95469957,125.64,125.56,3.25017382]
[1769179553271,7.1722,125.65,125.56,3.25017382]
[1769179553473,7.1722,125.65,125.59,0.05151359]
[1769179553663,7.1723,125.64,125.59,0.05151359]
[1769179554063,0.95469957,125.65,125.59,0.05151359]
[1769179554271,0.95469957,125.65,125.56,3.25017382]
[1769179554661,7.1734,125.62,125.56,10.42687382]
[1769179554873,7.1734,125.62,125.56,3.25017382]
[1769179555478,7.1725,125.64,125.56,10.42657382]
[1769179555670,7.1725,125.64,125.56,3.25017382]
[1769179555882,0.95469957,125.65,125.56,3.25017382]
[1769179556387,0.0571844,125.62,125.56,3.25017382]
[1769179558373,0.0571844,125.62,125.5,5.30522968]
[1769179558374,0.95469957,125.59,125.5,3.25017382]
[1769179558581,0.95469957,125.58,125.47,3.25017382]
[1769179558778,6.25992925,125.57,125.47,3.25017382]
[1769179558980,7.1776,125.55,125.48,7.1813]
[1769179559174,6.25992925,125.57,125.47,114.96527382]
[1769179559380,0.05863463,125.53,125.48,3.25017382]
[1769179559683,0.95469957,125.57,125.49,3.25017382]
[1769179559871,0.95469957,125.57,125.49,3.30660577]
[1769179560270,0.95469957,125.57,125.49,3.25017382]
[1769179560874,0.95469957,125.57,125.52,0.05855898]
[1769179561077,12.48082968,125.59,125.52,0.05855898]
[1769179561285,5.30522968,125.59,125.52,0.05855898]
[1769179562388,8.12959957,125.6,125.52,7.23745898]
[1769179562588,0.95664983,125.63,125.52,3.58033209]
[1769179562885,7.1738,125.62,125.55,7.1773]
[1769179563282,7.1738,125.62,125.56,0.05980509]
[1769179563680,0.95664983,125.66,125.56,3.5815782]
[1769179563983,112.48864983,125.69,125.58,3.52177311]
[1769179564492,7.1711,125.66,125.59,7.175]
[1769179564693,0.95664983,125.68,125.62,0.05704701]
[1769179565184,6.26187951,125.68,125.62,0.05704701]
[1769179565391,0.95664983,125.67,125.62,0.05704701]
[1769179565784,8.12724983,125.67,125.62,0.05704701]
[1769179566690,0.95664983,125.67,125.58,3.52177311]
[1769179567887,0.9529023,125.65,125.57,7.1757]
[1769179568095,0.9529023,125.65,125.55,3.35559372]
[1769179568096,0.9529023,125.64,125.55,3.35559372]
[1769179568487,7.22605624,125.62,125.55,1.49558005]
[1769179568689,2.86547221,125.62,125.54,7.1774]
[1769179568990,7.1753,125.59,125.49,111.6963]
[1769179569195,2.81291597,125.58,125.47,111.7127]
[1769179569790,2.81291597,125.56,125.47,7.1815]
[1769179569986,2.81291597,125.55,125.44,111.7382]
[1769179570298,2.81291597,125.54,125.44,7.1833]
[1769179570496,0.05929736,125.51,125.44,10.53889372]
[1769179570792,0.05929736,125.51,125.45,3.35559372]
[1769179570986,2.81291597,125.57,125.47,3.35559372]
[1769179571184,2.81291597,125.57,125.48,3.35559372]
[1769179571996,7.1755,125.59,125.5,3.35559372]
[1769179572385,8.17744301,125.6,125.51,0.05282935]
[1769179572788,8.17744301,125.6,125.5,3.35559372]
[1769179572994,7.1758,125.58,125.5,3.35559372]
[1769179573192,7.1758,125.58,125.54,0.05301618]
[1769179573393,7.1758,125.58,125.5,3.35559372]
[1769179573890,7.1758,125.58,125.5,10.53569372]
[1769179574294,10.04701333,125.6,125.5,3.35559372]
[1769179574492,111.5668,125.65,125.52,3.35559372]
[1769179574493,2.87221333,125.63,125.52,3.35559372]
[1769179574996,7.1737,125.62,125.53,3.35559372]
[1769179575599,2.87221333,125.63,125.55,7.1772]
[1769179576094,2.87221333,125.63,125.53,10.53369372]
[1769179576298,2.87221333,125.61,125.5,115.04559372]
[1769179576492,2.87221333,125.61,125.5,3.35559372]
[1769179576701,2.87221333,125.59,125.5,3.35559372]
[1769179576997,2.87221333,125.57,125.47,3.35559372]
[1769179577193,2.92814776,125.57,125.47,3.35559372]
[1769179577390,7.1775,125.55,125.47,3.35559372]
[1769179577591,2.87221333,125.55,125.47,3.35559372]
[1769179578405,0.05004638,125.52,125.47,3.35559372]
[1769179578992,0.05004638,125.52,125.47,10.53729372]
[1769179579301,0.05004638,125.52,125.44,115.09369372]
[1769179579606,0.05004638,125.52,125.44,3.35559372]
[1769179579809,2.87221333,125.55,125.44,3.35559372]
[1769179580104,7.1786,125.53,125.45,7.183]
[1769179580308,2.87221333,125.54,125.45,7.183]
[1769179580500,2.87221333,125.54,125.44,3.35559372]
[1769179580806,0.05234178,125.5,125.44,3.35559372]
[1769179581199,2.87221333,125.54,125.46,10.53799372]
[1769179581502,2.87221333,125.54,125.46,10.59376249]
[1769179581899,2.87221333,125.54,125.46,10.53799372]
[1769179582101,7.1786,125.53,125.46,3.35559372]
[1769179582401,2.87221333,125.54,125.43,3.35559372]
[1769179582594,2.87221333,125.54,125.48,0.05321684]
[1769179584202,7.1779,125.55,125.48,0.05321684]
[1769179584595,10.10115511,125.57,125.49,7.1807]
[1769179584997,2.92455511,125.57,125.47,3.35559372]
[1769179585398,2.92455511,125.56,125.52,0.05223403]
[1769179585605,0.05192706,125.53,125.47,10.53699372]
[1769179586401,7.23052706,125.53,125.47,3.35559372]
[1769179587105,7.23052706,125.53,125.45,7.1828]
[1769179587499,7.1786,125.53,125.45,7.1828]
[1769179587700,7.1786,125.53,125.45,10.53839372]
[1769179588304,7.1786,125.53,125.46,10.53799372]
[1769179589009,2.87232108,125.54,125.47,10.53739372]
[1769179589010,7.178,125.54,125.47,10.53739372]
[1769179589609,7.1792,125.52,125.45,7.1826]
[1769179589812,114.52422108,125.55,125.44,3.35559372]
[1769179589813,2.87232108,125.53,125.44,3.35559372]
[1769179590305,119.84071566,125.56,125.45,3.35559372]
[1769179591011,2.87232108,125.56,125.48,3.35559372]
[1769179591211,114.49092108,125.59,125.48,3.35559372]
[1769179591712,114.50512108,125.57,125.48,3.35559372]
[1769179592305,2.87232108,125.57,125.49,3.45921713]
[1769179592706,7.1781,125.54,125.49,3.45921713]
[1769179593006,2.87232108,125.57,125.49,3.45921713]
[1769179593604,7.178,125.54,125.49,3.45921713]
[1769179594006,111.6235,125.58,125.49,3.45921713]
[1769179594312,111.6231,125.58,125.49,3.45921713]
[1769179594910,114.49213759,125.59,125.49,3.45921713]
[1769179595609,114.49213759,125.59,125.5,3.45921713]
[1769179595809,111.612,125.6,125.5,3.45921713]
[1769179596516,7.1763,125.57,125.51,3.45921713]
[1769179597717,7.1756,125.59,125.52,3.45921713]
[1769179598018,114.46553759,125.62,125.52,3.45921713]
[1769179598415,114.47793759,125.6,125.52,3.45921713]
[1769179598620,111.6134,125.59,125.52,3.45921713]
[1769179599213,7.1761,125.58,125.52,3.45921713]
[1769179599516,114.47793759,125.6,125.52,3.45921713]
[1769179600913,7.1763,125.57,125.52,3.45921713]
[1769179601625,7.1768,125.56,125.52,3.45921713]
[1769179601867,7.1768,125.56,125.47,117.04299458]
[1769179601868,7.1768,125.56,125.48,7.181]
[1769179602065,114.49973759,125.58,125.49,3.45921713]
[1769179602218,10.04973759,125.58,125.49,3.45921713]
[1769179602625,10.04973759,125.58,125.5,3.45921713]
[1769179603127,10.04973759,125.58,125.51,3.45921713]
[1769179603128,7.1762,125.58,125.51,3.45921713]
[1769179603327,7.1751,125.59,125.51,3.45921713]
[1769179604624,7.1751,125.59,125.52,3.45921713]
[1769179604827,2.87353759,125.63,125.52,3.45921713]
[1769179605026,2.87353759,125.63,125.55,10.63641713]
[1769179606025,7.1728,125.63,125.56,10.63601713]
[1769179606219,114.43263759,125.66,125.56,10.63601713]
[1769179606420,2.87353759,125.66,125.57,3.45921713]
[1769179607324,2.87353759,125.65,125.54,3.45921713]
[1769179607627,2.87353759,125.63,125.54,3.45921713]
[1769179607834,2.87353759,125.6,125.51,3.45921713]
[1769179608430,2.92795165,125.57,125.48,3.45921713]
[1769179608835,2.87353759,125.57,125.48,3.45921713]
[1769179609034,2.87353759,125.57,125.48,10.64041713]
[1769179609335,2.87353759,125.57,125.49,3.45921713]
[1769179609638,2.87353759,125.57,125.5,7.1799]
[1769179610036,2.87353759,125.6,125.5,3.45921713]
[1769179610834,2.87353759,125.57,125.46,3.45921713]
[1769179611439,7.1782,125.55,125.46,10.64231713]
[1769179611628,7.1782,125.55,125.47,3.45921713]
[1769179611830,2.87353759,125.57,125.47,3.45921713]
[1769179612330,2.87353759,125.55,125.47,3.45921713]
[1769179612532,2.87353759,125.53,125.43,3.45921713]
[1769179612736,114.55413759,125.53,125.43,3.45921713]
[1769179612935,2.87353759,125.53,125.43,3.45921713]
[1769179613431,7.1801,125.52,125.43,3.45921713]
[1769179613735,2.87353759,125.52,125.43,3.45921713]
[1769179613925,7.1805,125.51,125.43,3.45921713]
[1769179614332,114.56283759,125.52,125.43,3.45921713]
[1769179614537,7.1817,125.49,125.43,3.45921713]
[1769179614834,117.01509458,125.52,125.4,3.45921713]
[1769179614835,119.88903217,125.52,125.4,3.45921713]
[1769179615031,0.05888807,125.47,125.4,3.45921713]
[1769179615430,111.79278807,125.47,125.4,3.45921713]
[1769179615730,10.05763759,125.45,125.37,9.79384671]
[1769179615934,2.87353759,125.43,125.37,4.671e-05]
[1769179616238,7.1864,125.41,125.37,4.671e-05]
[1769179616439,111.7857,125.41,125.37,4.671e-05]
[1769179616635,121.86513759,125.39,125.29,3.45921713]
[1769179616842,2.87353759,125.39,125.29,3.45921713]
[1769179617042,111.7544,125.45,125.33,3.45921713]
[1769179617043,0.05786938,125.4,125.33,3.45921713]
[1769179617548,114.66093759,125.41,125.33,3.45921713]
[1769179617933,10.06003759,125.41,125.33,3.45921713]
[1769179618134,117.08619458,125.44,125.33,3.45921713]
[1769179618334,2.87353759,125.44,125.33,3.45921713]
[1769179619037,7.1852,125.43,125.33,3.45921713]
[1769179619235,2.87353759,125.42,125.33,3.45921713]
[1769179620232,10.05943759,125.42,125.33,3.45921713]
[1769179620438,117.08609458,125.44,125.33,3.45921713]
[1769179620635,2.87353759,125.48,125.37,3.45921713]
[1769179620948,111.723,125.48,125.39,3.45921713]
[1769179621340,111.7426,125.46,125.39,3.45921713]
[1769179621645,111.7669,125.43,125.32,5.32579458]
[1769179621846,114.96714136,125.43,125.32,5.32579458]
[1769179622035,7.1859,125.42,125.32,5.32579458]
[1769179622644,7.1846,125.44,125.33,7.1903]
[1769179623340,111.751,125.45,125.33,7.1903]
[1769179623341,10.53045245,125.46,125.35,111.8376]
[1769179623541,3.34695245,125.49,125.38,3.42603999]
[1769179623745,111.7013,125.51,125.39,3.42603999]
[1769179623946,111.7044,125.5,125.4,3.42603999]
[1769179624245,111.7047,125.5,125.4,3.42603999]
[1769179624444,118.882,125.51,125.41,3.42603999]
[1769179624643,111.7013,125.51,125.41,3.42603999]
[1769179624845,115.03585245,125.52,125.41,3.42603999]
[1769179625251,7.1812,125.5,125.41,3.42603999]
[1769179626564,115.18548267,125.49,125.41,3.42603999]
[1769179627363,7.1825,125.48,125.41,3.42603999]
[1769179627766,111.7004,125.51,125.41,3.42603999]
[1769179627948,115.17208267,125.51,125.41,3.42603999]
[1769179628152,7.1818,125.49,125.41,3.42603999]
[1769179628363,111.7137,125.49,125.41,3.42603999]
[1769179628863,115.20428267,125.47,125.38,3.36554343]
[1769179629656,3.47168267,125.45,125.35,3.36554343]
[1769179629857,3.47168267,125.43,125.35,3.36554343]
[1769179630957,115.21258267,125.46,125.35,3.36554343]
[1769179631461,3.47168267,125.46,125.36,3.36554343]
[1769179632060,7.1845,125.44,125.36,3.36554343]
[1769179632659,111.7618,125.44,125.36,3.36554343]
[1769179632854,0.05300345,125.41,125.33,3.36554343]
[1769179633466,115.24178267,125.43,125.33,3.36554343]
[1769179633958,111.7873,125.41,125.33,3.36554343]
[1769179634564,7.1863,125.41,125.33,3.36554343]
[1769179634967,7.1863,125.41,125.34,3.36554343]
[1769179635558,3.47168267,125.42,125.34,3.36554343]
[1769179636155,117.08759458,125.44,125.34,3.36554343]
[1769179636359,115.24768267,125.42,125.34,3.36554343]
[1769179636666,8.79747725,125.44,125.32,3.36554343]
[1769179636970,115.23258267,125.44,125.32,3.36554343]
[1769179637169,7.1862,125.41,125.34,3.36554343]
[1769179637370,111.7691,125.43,125.34,3.36554343]
[1769179637570,115.24078267,125.43,125.34,3.36554343]
[1769179637771,7.1868,125.4,125.34,3.36554343]
[1769179638364,115.25018267,125.42,125.34,3.36554343]
[1769179638766,7.188,125.38,125.34,4.343e-05]
[1769179638972,7.188,125.38,125.29,7.1925]
[1769179639472,7.188,125.38,125.27,117.24279109]
[1769179639668,7.1868,125.4,125.28,111.9003]
[1769179639973,7.1868,125.4,125.3,5.33639109]
[1769179640364,115.25898267,125.41,125.3,7.1921]
[1769179640565,115.25898267,125.41,125.28,117.23669109]
[1769179640566,3.47168267,125.38,125.28,5.33639109]
[1769179640969,3.47168267,125.38,125.25,301.56]
[1769179640970,115.28948267,125.38,125.27,3.36554343]
[1769179641170,111.8203,125.37,125.27,3.36554343]
[1769179641372,115.29198267,125.37,125.27,3.36554343]
[1769179641580,115.31028267,125.35,125.27,3.36554343]
[1769179641774,3.47168267,125.34,125.24,8.70193452]
[1769179642074,115.32098267,125.34,125.24,3.36554343]
[1769179642271,3.47168267,125.32,125.2,3.36554343]
[1769179642478,3.47168267,125.32,125.22,3.36554343]
[1769179642662,3.47168267,125.35,125.23,3.36554343]
[1769179642867,3.47168267,125.34,125.24,10.56114343]
[1769179643272,7.1908,125.33,125.24,10.56114343]
[1769179643471,0.05433622,125.3,125.24,10.56114343]
[1769179643872,3.47168267,125.34,125.25,3.36554343]
[1769179644073,3.47168267,125.37,125.26,3.42016611]
[1769179644471,3.47168267,125.4,125.29,3.36554343]
[1769179644667,3.47168267,125.38,125.29,3.36554343]
[1769179645266,5.33639109,125.4,125.32,0.05468187]
[1769179645468,3.47168267,125.41,125.32,0.05468187]
[1769179645777,3.47168267,125.41,125.3,3.36554343]
[1769179646170,3.47168267,125.41,125.35,0.05050932]
[1769179646874,10.65808267,125.41,125.35,0.05050932]
[1769179647267,3.47168267,125.44,125.35,0.05050932]
[1769179647668,3.47168267,125.47,125.35,3.41605275]
[1769179647871,3.47168267,125.47,125.37,3.36554343]
[1769179648068,3.47168267,125.47,125.38,3.36554343]
[1769179648269,7.1822,125.48,125.39,10.55254343]
[1769179649076,7.1822,125.48,125.42,0.05659334]
[1769179650077,3.47168267,125.5,125.42,0.05659334]
[1769179650280,3.47168267,125.49,125.42,0.05659334]
[1769179650676,3.47168267,125.47,125.36,3.36554343]
[1769179650972,3.52280954,125.47,125.36,3.36554343]
[1769179651174,7.1835,125.46,125.37,7.1881]
[1769179651578,7.1835,125.46,125.37,10.55364343]
[1769179652375,0.0525205,125.43,125.37,10.55364343]
[1769179652776,0.0525205,125.43,125.32,427.878]
[1769179652777,3.43361663,125.43,125.34,3.28917899]
[1769179652969,3.43361663,125.43,125.31,120.49107008]
[1769179653169,3.43361663,125.43,125.34,7.1898]
[1769179653376,3.38109613,125.43,125.34,10.47897899]
[1769179653568,117.08799109,125.45,125.31,117.20189109]
[1769179653569,3.38109613,125.41,125.31,115.15807899]
[1769179653774,0.05566615,125.4,125.34,7.1899]
[1769179653975,0.05566615,125.4,125.34,10.47907899]
[1769179654172,3.38109613,125.44,125.34,10.47907899]
[1769179654576,0.05695856,125.38,125.34,10.47907899]
[1769179654984,3.38109613,125.44,125.34,10.47907899]
[1769179655185,7.1847,125.44,125.36,10.47797899]
[1769179655884,3.38109613,125.43,125.34,7.1899]
[1769179656178,3.38109613,125.42,125.33,3.28917899]
[1769179656581,115.16819613,125.41,125.33,3.28917899]
[1769179656787,3.38109613,125.39,125.3,3.28917899]
[1769179656981,7.1898,125.35,125.27,3.28917899]
[1769179657680,3.38109613,125.37,125.28,3.28917899]
[1769179658083,3.38109613,125.35,125.25,3.28917899]
[1769179658387,115.21019613,125.35,125.25,3.28917899]
[1769179658789,3.38109613,125.33,125.25,3.28917899]
[1769179659088,0.05421031,125.31,125.25,3.28917899]
[1769179659487,117.16199109,125.36,125.22,111.94]
[1769179659488,3.38109613,125.36,125.26,3.28917899]
[1769179659681,3.38109613,125.35,125.26,3.28917899]
[1769179659881,3.38109613,125.35,125.27,0.05999384]
[1769179660083,7.1907,125.32,125.27,0.05999384]
[1769179660278,7.1907,125.32,125.23,3.28917899]